fUSD/lending_fUSD_20250814
["ID","MTS","AMOUNT","RATE_DAILY","PERIOD"]
[379128373,1755151969135,-400.0,0.0005726,120]
[379128374,1755151969145,-400.0,0.0005726,120]
[379128375,1755151969155,-400.0,0.0005726,120]
[379128376,1755151969166,-459.89,0.0005726,120]
[379128377,1755151969176,-1388.84,0.0005726,120]
[379128378,1755151969186,-1470.66,0.0005726,120]
[379128379,1755151969197,-400.0,0.0005726,120]
[379128380,1755151969208,-1279.9,0.0005726,120]
[379128381,1755151969219,-400.0,0.0005726,120]
[379128382,1755151969229,-400.0,0.0005726,120]
[379128383,1755151969239,-400.0,0.0005726,120]
[379128384,1755151969249,-1557.49,0.0005726,120]
[379128385,1755151969259,-4796.07,0.0005726,120]
[379128386,1755151969269,-400.0,0.0005726,120]
[379128387,1755151969279,-1397.98,0.0005726,120]
[379128388,1755151969288,-400.0,0.0005726,120]
[379128389,1755151969298,-1255.71,0.0005726,120]
[379128390,1755151969308,-3562.17,0.0005726,120]
[379128391,1755151969318,-400.0,0.0005726,120]
[379128392,1755151969328,-2231.09,0.0005726,120]
[379128393,1755151969338,-594.96,0.0005726,120]
[379128394,1755151969348,-400.0,0.0005726,120]
[379128395,1755151969357,-753.54,0.0005726,120]
[379128396,1755151969367,-411.57,0.0005726,120]
[379128397,1755151969377,-400.0,0.0005726,120]
[379128398,1755151969387,-400.0,0.0005726,120]
[379128399,1755151969396,-400.0,0.0005726,120]
[379128400,1755151969406,-2275.13,0.0005726,120]
[379128401,1755151969419,-400.0,0.0005726,120]
[379128402,1755151969430,-4179.34,0.0005726,120]
[379128403,1755151969440,-3602.81,0.0005726,120]
[379128404,1755151969450,-400.0,0.0005726,120]
[379128405,1755151969461,-697.24,0.0005726,120]
[379128406,1755151969471,-400.0,0.0005726,120]
[379128407,1755151969482,-1091.59,0.0005726,120]
[379128408,1755151969492,-1188.89,0.0005726,120]
[379128409,1755151969501,-400.0,0.0005726,120]
[379128410,1755151969511,-400.0,0.0005726,120]
[379128411,1755151969521,-657.82,0.0005726,120]
[379128412,1755151969656,-1943.71,0.0005726,120]
[379128413,1755151969669,-1947.43,0.0005726,120]
[379128414,1755151969679,-621.34,0.0005726,120]
[379128415,1755151969688,-400.0,0.0005726,120]
[379128416,1755151969697,-2885.05,0.0005726,120]
[379128417,1755151969707,-1136.53,0.0005726,120]
[379128418,1755151969716,-409.26,0.0005726,120]
[379128419,1755151969725,-400.0,0.0005726,120]
[379128420,1755151969735,-400.0,0.0005726,120]
[379128421,1755151969744,-874.51,0.0005726,120]
[379128422,1755151969754,-1523.92,0.0005726,120]
[379128423,1755151969763,-525.55,0.0005726,120]
[379128424,1755151969772,-400.0,0.0005726,120]
[379128425,1755151969781,-400.0,0.0005726,120]
[379128426,1755151969791,-2634.74,0.0005726,120]
[379128427,1755151969800,-400.0,0.0005726,120]
[379128428,1755151969810,-400.0,0.0005726,120]
[379128429,1755151969819,-569.15,0.0005726,120]
[379128430,1755151969829,-526.01,0.0005726,120]
[379128431,1755151969838,-1435.39,0.0005726,120]
[379128432,1755151969851,-400.0,0.0005726,120]
[379128433,1755151969861,-400.0,0.0005726,120]
[379128434,1755151969869,-400.0,0.0005726,120]
[379128435,1755151969879,-400.0,0.0005726,120]
[379128436,1755151969889,-3145.12,0.0005726,120]
[379128437,1755151969898,-400.0,0.0005726,120]
[379128438,1755151969907,-400.0,0.0005726,120]
[379128439,1755151969919,-973.72,0.0005726,120]
[379128440,1755151969928,-400.0,0.0005726,120]
[379128441,1755151969937,-1535.26,0.0005726,120]
[379128442,1755151969947,-400.0,0.0005726,120]
[379128443,1755151969960,-502.53,0.0005726,120]
[379128444,1755151969969,-400.0,0.0005726,120]
[379128445,1755151969978,-1237.4,0.0005726,120]
[379128446,1755151969989,-160.84,0.0005726,120]
[379128447,1755151969998,-400.0,0.0005726,120]
[379128448,1755151970008,-430.38032255,0.0005726,120]
[379128449,1755151970017,-400.0,0.0005726,120]
[379128450,1755151970026,-400.0,0.0005726,120]
[379128451,1755151970037,-400.0,0.0005726,7]
[379128452,1755151970047,-994.56,0.0005726,120]
[379128453,1755151970057,-3930.5,0.0005726,120]
[379128454,1755151970068,-851.4,0.0005726,120]
[379128455,1755151970090,-454.17232729,0.0005726,120]
[379128456,1755151970111,-1688.6,0.0005726,120]
[379128457,1755151970126,-417.86,0.0005726,120]
[379128458,1755151970136,-1138.14,0.0005726,120]
[379128459,1755151970146,-261.50341476,0.0005726,120]
[379128460,1755151970155,-400.0,0.0005726,120]
[379128461,1755151970166,-400.0,0.0005726,120]
[379128462,1755151970175,-2306.91,0.0005726,120]
[379128463,1755151970185,-400.0,0.0005726,120]
[379128464,1755151970195,-1932.47,0.0005726,120]
[379128465,1755151970204,-1449.35,0.0005726,120]
[379128466,1755151970214,-400.0,0.0005726,120]
[379128467,1755151970224,-2898.61,0.0005726,120]
[379128468,1755151970233,-400.0,0.0005726,120]
[379128469,1755151970243,-400.0,0.0005726,120]
[379128470,1755151970254,-597.08,0.0005726,120]
[379128471,1755151970266,-977.15,0.0005726,120]
[379128472,1755151970276,-605.25,0.0005726,120]
[379128473,1755151970287,-645.84,0.0005726,120]
[379128474,1755151970298,-400.0,0.0005726,120]
[379128475,1755151970309,-470.15250098,0.0005726,120]
[379128476,1755151970319,-640.09,0.0005726,120]
[379128477,1755151970328,-400.0,0.0005726,120]
[379128478,1755151970338,-2143.17,0.0005726,120]
[379128479,1755151970348,-1504.96,0.0005726,30]
[379128480,1755151970358,-409.18392972,0.0005726,120]
[379128481,1755151970367,-4441.35,0.0005726,60]
[379128482,1755151970377,-400.0,0.0005726,120]
[379128483,1755151970387,-1063.89,0.0005726,120]
[379128484,1755151970396,-400.0,0.0005726,120]
[379128485,1755151970406,-3704.26,0.0005726,120]
[379128486,1755151970418,-749.81,0.0005726,120]
[379128487,1755151970427,-400.0,0.0005726,120]
[379128488,1755151970437,-400.0,0.0005726,120]
[379128489,1755151970447,-796.46,0.0005726,120]
[379128490,1755151970457,-680.22,0.0005726,120]
[379128491,1755151970467,-922.0,0.0005726,120]
[379128492,1755151970476,-2057.96,0.0005726,120]
[379128493,1755151970486,-1635.41,0.0005726,120]
[379128494,1755151970495,-400.0,0.0005726,120]
[379128495,1755151970504,-2448.92,0.0005726,120]
[379128496,1755151970514,-3741.78,0.0005726,120]
[379128497,1755151970524,-400.0,0.0005726,120]
[379128498,1755151970534,-1764.54,0.0005726,120]
[379128499,1755151970543,-400.0,0.0005726,120]
[379128500,1755151970553,-643.99,0.0005726,120]
[379128501,1755151970562,-773.35,0.0005726,120]
[379128502,1755151970572,-400.0,0.0005726,120]
[379128503,1755151970581,-400.0,0.0005726,120]
[379128504,1755151970591,-400.0,0.0005726,120]
[379128505,1755151970600,-400.0,0.0005726,120]
[379128506,1755151970609,-806.63,0.0005726,120]
[379128507,1755151970619,-171.58602825,0.0005726,120]
[379128508,1755151970629,-400.0,0.0005726,120]
[379128509,1755151970639,-3697.49,0.0005726,120]
[379128510,1755151970648,-400.0,0.0005726,120]
[379128511,1755151970658,-400.0,0.0005726,120]
[379128512,1755151970668,-400.0,0.0005726,120]
[379128513,1755151970678,-400.0,0.0005726,120]
[379128514,1755151970687,-400.0,0.0005726,120]
[379128515,1755151970697,-2202.06,0.0005726,120]
[379128516,1755151970707,-2618.33,0.0005726,120]
[379128517,1755151970717,-400.0,0.0005726,120]
[379128518,1755151970727,-422.63,0.0005726,120]
[379128519,1755151970736,-1232.69,0.0005726,120]
[379128520,1755151970746,-400.0,0.0005726,120]
[379128521,1755151970756,-400.0,0.0005726,120]
[379128522,1755151970765,-956.31,0.0005726,120]
[379128523,1755151970774,-787.12,0.0005726,120]
[379128524,1755151970784,-946.92,0.0005726,120]
[379128525,1755151970793,-400.0,0.0005726,120]
[379128526,1755151970804,-400.0,0.0005726,120]
[379128527,1755151970814,-2908.77,0.0005726,120]
[379128528,1755151970823,-698.51,0.0005726,120]
[379128529,1755151970833,-1772.64,0.0005726,120]
[379128530,1755151970843,-414.04,0.0005726,120]
[379128531,1755151970852,-3094.08,0.0005726,120]
[379128532,1755151970862,-1082.85,0.0005726,120]
[379128533,1755151970872,-1462.02,0.0005726,120]
[379128534,1755151970881,-1237.68,0.0005726,120]
[379128535,1755151970891,-1768.49,0.0005726,120]
[379128536,1755151970900,-400.0,0.0005726,120]
[379128537,1755151970911,-400.0,0.0005726,120]
[379128538,1755151970921,-1704.18,0.0005726,120]
[379128539,1755151970930,-400.0,0.0005726,120]
[379128540,1755151970939,-1596.72,0.0005726,120]
[379128541,1755151970953,-970.53,0.0005726,120]
[379128542,1755151970962,-2462.23,0.0005726,120]
[379128543,1755151970971,-1830.0,0.0005726,120]
[379128544,1755151970981,-2324.76,0.0005726,120]
[379128545,1755151970991,-400.0,0.0005726,120]
[379128546,1755151971001,-400.0,0.0005726,120]
[379128547,1755151971010,-1017.9,0.0005726,120]
[379128548,1755151971020,-1510.97,0.0005726,120]
[379128549,1755151971030,-400.0,0.0005726,120]
[379128550,1755151971039,-400.0,0.0005726,120]
[379128551,1755151971048,-2038.31,0.0005726,120]
[379128552,1755151971058,-1143.04,0.0005726,120]
[379128553,1755151971067,-713.52,0.0005726,120]
[379128554,1755151971076,-755.88,0.0005726,120]
[379128555,1755151971086,-718.87,0.0005726,120]
[379128556,1755151971097,-556.99,0.0005726,120]
[379128557,1755151971107,-400.0,0.0005726,120]
[379128558,1755151971117,-2571.66,0.0005726,120]
[379128559,1755151971127,-400.0,0.0005726,120]
[379128560,1755151971137,-400.0,0.0005726,120]
[379128561,1755151971147,-400.0,0.0005726,120]
[379128562,1755151971157,-400.0,0.0005726,120]
[379128563,1755151971170,-1807.99,0.0005726,120]
[379128564,1755151971179,-400.0,0.0005726,120]
[379128565,1755151971189,-400.0,0.0005726,120]
[379128566,1755151971198,-533.67,0.0005726,120]
[379128567,1755151971208,-407.33,0.0005726,120]
[379128568,1755151971218,-400.0,0.0005726,120]
[379128569,1755151971227,-1087.08,0.0005726,120]
[379128570,1755151971236,-2899.38,0.0005726,120]
[379128571,1755151971246,-400.0,0.0005726,120]
[379128572,1755151971255,-400.0,0.0005726,120]
[379128573,1755151971265,-400.0,0.0005726,120]
[379128574,1755151971275,-400.0,0.0005726,120]
[379128575,1755151971284,-924.51,0.0005726,120]
[379128576,1755151971294,-400.0,0.0005726,120]
[379128577,1755151971304,-400.0,0.0005726,120]
[379128578,1755151971314,-3096.61,0.0005726,120]
[379128579,1755151971323,-400.0,0.0005726,120]
[379128580,1755151971333,-1363.2,0.0005726,120]
[379128581,1755151971343,-400.0,0.0005726,120]
[379128582,1755151971352,-1524.73,0.0005726,120]
[379128583,1755151971362,-400.0,0.0005726,120]
[379128584,1755151971371,-2258.0,0.0005726,120]
[379128585,1755151971381,-982.03,0.0005726,120]
[379128586,1755151971390,-400.0,0.0005726,120]
[379128587,1755151971400,-2813.54,0.0005726,120]
[379128588,1755151971413,-1859.15,0.0005726,120]
[379128589,1755151971422,-4282.75,0.0005726,120]
[379128590,1755151971431,-400.0,0.0005726,120]
[379128591,1755151971441,-633.33,0.0005726,120]
[379128592,1755151971450,-589.25,0.0005726,120]
[379128593,1755151971460,-409.89,0.0005726,120]
[379128594,1755151971469,-408.54419722,0.0005726,120]
[379128595,1755151971478,-2107.25,0.0005726,120]
[379128596,1755151971487,-1069.77,0.0005726,120]
[379128597,1755151971497,-400.0,0.0005726,120]
[379128598,1755151971506,-400.0,0.0005726,120]
[379128599,1755151971515,-425.94,0.0005726,7]
[379128600,1755151971524,-400.0,0.0005726,120]
[379128601,1755151971534,-726.28,0.0005726,120]
[379128602,1755151971544,-400.0,0.0005726,120]
[379128603,1755151971554,-403.65277065,0.0005726,120]
[379128604,1755151971564,-400.0,0.0005726,120]
[379128605,1755151971574,-1895.43,0.0005726,120]
[379128606,1755151971585,-400.0,0.0005726,120]
[379128607,1755151971595,-400.0,0.0005726,120]
[379128608,1755151971605,-400.0,0.0005726,120]
[379128609,1755151971615,-2422.29,0.0005726,120]
[379128610,1755151971625,-400.0,0.0005726,2]
[379128611,1755151971634,-563.93,0.0005726,120]
[379128612,1755151971644,-400.0,0.0005726,120]
[379128613,1755151971653,-400.0,0.0005726,120]
[379128614,1755151971665,-400.0,0.0005726,120]
[379128615,1755151971675,-610.6,0.0005726,120]
[379128616,1755151971686,-400.0,0.0005726,120]
[379128617,1755151971696,-433.74,0.0005726,120]
[379128618,1755151971706,-400.0,0.0005726,120]
[379128619,1755151971716,-400.0,0.0005726,120]
[379128620,1755151971726,-400.0,0.0005726,120]
[379128621,1755151971735,-1120.18,0.0005726,120]
[379128622,1755151971745,-1082.87,0.0005726,120]
[379128623,1755151971755,-714.76,0.0005726,120]
[379128624,1755151971764,-2365.39,0.0005726,120]
[379128625,1755151971774,-2336.16,0.0005726,120]
[379128626,1755151971783,-1881.91,0.0005726,120]
[379128627,1755151971792,-400.0,0.0005726,120]
[379128628,1755151971802,-1986.2,0.0005726,120]
[379128629,1755151971812,-748.74,0.0005726,120]
[379128630,1755151971822,-1483.04,0.0005726,120]
[379128631,1755151971832,-400.0,0.0005726,120]
[379128632,1755151971842,-500.0,0.0005726,120]
[379128633,1755151971852,-2102.01,0.0005726,120]
[379128634,1755151971861,-400.0,0.0005726,120]
[379128635,1755151971871,-1431.81,0.0005726,120]
[379128636,1755151971881,-491.79,0.0005726,120]
[379128637,1755151971890,-716.54,0.0005726,120]
[379128638,1755151971901,-2604.84,0.0005726,120]
[379128639,1755151971912,-1150.55,0.0005726,120]
[379128640,1755151971922,-400.0,0.0005726,120]
[379128641,1755151971932,-561.48,0.0005726,120]
[379128642,1755151971942,-400.0,0.0005726,120]
[379128643,1755151971952,-400.0,0.0005726,120]
[379128644,1755151971965,-400.0,0.0005726,120]
[379128645,1755151971974,-400.0,0.0005726,120]
[379128646,1755151971983,-2590.07,0.0005726,120]
[379128647,1755151971994,-3380.76,0.0005726,120]
[379128648,1755151972003,-773.51,0.0005726,120]
[379128649,1755151972013,-1105.75,0.0005726,120]
[379128650,1755151972022,-644.06,0.0005726,120]
[379128651,1755151972033,-400.0,0.0005726,120]
[379128652,1755151972043,-400.0,0.0005726,120]
[379128653,1755151972053,-400.0,0.0005726,120]
[379128654,1755151972062,-921.37,0.0005726,120]
[379128655,1755151972072,-1957.54,0.0005726,120]
[379128656,1755151972082,-400.0,0.0005726,120]
[379128657,1755151972091,-3308.64,0.0005726,120]
[379128658,1755151972100,-828.75,0.0005726,120]
[379128659,1755151972110,-400.0,0.0005726,120]
[379128660,1755151972119,-1263.09,0.0005726,120]
[379128661,1755151972129,-862.06,0.0005726,120]
[379128662,1755151972139,-400.0,0.0005726,120]
[379128663,1755151972148,-4194.8,0.0005726,120]
[379128664,1755151972157,-2648.82,0.0005726,120]
[379128665,1755151972168,-675.62,0.0005726,120]
[379128666,1755151972178,-400.0,0.0005726,120]
[379128667,1755151972188,-400.0,0.0005726,120]
[379128668,1755151972196,-3141.33,0.0005726,120]
[379128669,1755151972206,-400.0,0.0005726,120]
[379128670,1755151972216,-799.3,0.0005726,120]
[379128671,1755151972225,-915.76,0.0005726,120]
[379128672,1755151972235,-1488.87,0.0005726,120]
[379128673,1755151972245,-4788.64,0.0005726,120]
[379128674,1755151972254,-446.06,0.0005726,120]
[379128675,1755151972264,-400.0,0.0005726,120]
[379128676,1755151972273,-422.44,0.0005726,120]
[379128677,1755151972291,-828.18,0.0005726,120]
[379128678,1755151972304,-558.99,0.0005726,120]
[379128679,1755151972315,-400.0,0.0005726,7]
[379128680,1755151972324,-3660.27,0.0005726,120]
[379128681,1755151972334,-4915.63,0.0005726,120]
[379128682,1755151972344,-400.0,0.0005726,120]
[379128683,1755151972354,-1671.55,0.0005726,120]
[379128684,1755151972364,-400.0,0.0005726,120]
[379128685,1755151972374,-2959.01,0.0005726,120]
[379128686,1755151972383,-400.0,0.0005726,120]
[379128687,1755151972393,-774.13,0.0005726,120]
[379128688,1755151972403,-588.75,0.0005726,120]
[379128689,1755151972415,-3563.05,0.0005726,120]
[379128690,1755151972424,-400.0,0.0005726,120]
[379128691,1755151972434,-1411.75,0.0005726,120]
[379128692,1755151972443,-400.0,0.0005726,120]
[379128693,1755151972453,-3034.35,0.0005726,120]
[379128694,1755151972462,-400.0,0.0005726,120]
[379128695,1755151972472,-400.0,0.0005726,120]
[379128696,1755151972481,-400.0,0.0005726,120]
[379128697,1755151972491,-421.42,0.0005726,120]
[379128698,1755151972501,-400.0,0.0005726,120]
[379128699,1755151972510,-10132.26,0.0005726,120]
[379128700,1755151972519,-400.0,0.0005726,120]
[379128701,1755151972529,-400.0,0.0005726,120]
[379128702,1755151972538,-3837.31,0.0005726,120]
[379128703,1755151972548,-2355.34,0.0005726,120]
[379128704,1755151972558,-400.0,0.0005726,120]
[379128705,1755151972568,-619.36,0.0005726,120]
[379128706,1755151972577,-400.0,0.0005726,120]
[379128707,1755151972587,-530.45,0.0005726,120]
[379128708,1755151972597,-3741.18,0.0005726,120]
[379128709,1755151972607,-400.0,0.0005726,120]
[379128710,1755151972616,-2416.13,0.0005726,120]
[379128711,1755151972626,-5302.86,0.0005726,120]
[379128712,1755151972636,-400.0,0.0005726,120]
[379128713,1755151972646,-455.25051415,0.0005726,120]
[379128714,1755151972655,-667.69,0.0005726,120]
[379128715,1755151972666,-1284.05,0.0005726,120]
[379128716,1755151972675,-2632.73,0.0005726,120]
[379128717,1755151972685,-1084.87,0.0005726,120]
[379128718,1755151972695,-405.17,0.0005726,120]
[379128719,1755151972704,-400.0,0.0005726,120]
[379128720,1755151972714,-400.0,0.0005726,120]
[379128721,1755151972724,-400.0,0.0005726,120]
[379128722,1755151972733,-981.71,0.0005726,120]
[379128723,1755151972743,-400.0,0.0005726,120]
[379128724,1755151972752,-400.0,0.0005726,120]
[379128725,1755151972761,-400.0,0.0005726,120]
[379128726,1755151972770,-3441.48,0.0005726,120]
[379128727,1755151972780,-400.0,0.0005726,120]
[379128728,1755151972790,-1554.4,0.0005726,120]
[379128729,1755151972800,-5684.34,0.0005726,120]
[379128730,1755151972810,-400.0,0.0005726,120]
[379128731,1755151972820,-7477.84,0.0005726,120]
[379128732,1755151972830,-2982.26,0.0005726,120]
[379128733,1755151972839,-400.0,0.0005726,120]
[379128734,1755151972849,-11358.44,0.0005726,120]
[379128735,1755151972858,-2000.0,0.0005726,30]
[379128736,1755151972868,-596.58,0.0005726,120]
[379128737,1755151972878,-920.25,0.0005726,120]
[379128738,1755151972888,-1016.73,0.0005726,120]
[379128739,1755151972897,-669.84,0.0005726,120]
[379128740,1755151972907,-400.0,0.0005726,120]
[379128741,1755151972919,-400.0,0.0005726,120]
[379128742,1755151972930,-400.0,0.0005726,120]
[379128743,1755151972940,-4187.8,0.0005726,120]
[379128744,1755151972953,-800.39,0.0005726,120]
[379128745,1755151972962,-4953.23,0.0005726,120]
[379128746,1755151972971,-451.56,0.0005726,120]
[379128747,1755151972981,-2280.27,0.0005726,120]
[379128748,1755151972991,-7813.46,0.0005726,120]
[379128749,1755151973000,-400.0,0.0005726,120]
[379128750,1755151973010,-3989.57,0.0005726,120]
[379128751,1755151973020,-4004.38,0.0005726,120]
[379128752,1755151973032,-505.94,0.0005726,120]
[379128753,1755151973042,-4559.92,0.0005726,120]
[379128754,1755151973052,-3221.19,0.0005726,120]
[379128755,1755151973062,-743.9,0.0005726,120]
[379128756,1755151973072,-1621.03,0.0005726,120]
[379128757,1755151973083,-400.0,0.0005726,120]
[379128758,1755151973092,-1566.01,0.0005726,120]
[379128759,1755151973102,-400.0,0.0005726,120]
[379128760,1755151973112,-400.0,0.0005726,120]
[379128761,1755151973121,-5315.13,0.0005726,120]
[379128762,1755151973131,-400.0,0.0005726,120]
[379128763,1755151973140,-400.0,0.0005726,120]
[379128764,1755151973150,-2645.16,0.0005726,120]
[379128765,1755151973161,-4739.44,0.0005726,120]
[379128766,1755151973171,-872.84,0.0005726,120]
[379128767,1755151973181,-3134.41,0.0005726,120]
[379128768,1755151973190,-400.0,0.0005726,120]
[379128769,1755151973200,-4215.8,0.0005726,120]
[379128770,1755151973209,-453.47,0.0005726,120]
[379128771,1755151973219,-2802.71,0.0005726,120]
[379128772,1755151973228,-4982.39,0.0005726,120]
[379128773,1755151973239,-402.22107319,0.0005726,120]
[379128774,1755151973248,-400.0,0.0005726,120]
[379128775,1755151973259,-400.0,0.0005726,120]
[379128776,1755151973271,-2950.03,0.0005726,120]
[379128777,1755151973281,-590.51,0.0005726,120]
[379128778,1755151973291,-6376.52,0.0005726,120]
[379128779,1755151973301,-2059.05,0.0005726,120]
[379128780,1755151973311,-400.0,0.0005726,120]
[379128781,1755151973321,-400.0,0.0005726,120]
[379128782,1755151973331,-2515.61,0.0005726,120]
[379128783,1755151973341,-24409.92,0.0005726,120]
[379128784,1755151973351,-400.0,0.0005726,120]
[379128785,1755151973360,-400.0,0.0005726,120]
[379128786,1755151973370,-400.0,0.0005726,120]
[379128787,1755151973380,-6141.07,0.0005726,120]
[379128788,1755151973391,-3350.54,0.0005726,120]
[379128789,1755151973403,-411.47,0.0005726,120]
[379128790,1755151973414,-400.0,0.0005726,120]
[379128791,1755151973424,-1387.3,0.0005726,120]
[379128792,1755151973434,-1511.8,0.0005726,120]
[379128793,1755151973444,-2495.29,0.0005726,120]
[379128794,1755151973453,-911.65,0.0005726,120]
[379128795,1755151973463,-400.0,0.0005726,120]
[379128796,1755151973472,-1798.23,0.0005726,120]
[379128797,1755151973483,-5853.35,0.0005726,120]
[379128798,1755151973492,-400.0,0.0005726,120]
[379128799,1755151973502,-400.0,0.0005726,120]
[379128800,1755151973512,-471.59,0.0005726,120]
[379128801,1755151973522,-400.0,0.0005726,120]
[379128802,1755151973532,-465.37716362,0.0005726,120]
[379128803,1755151973542,-588.51,0.0005726,120]
[379128804,1755151973551,-4554.64,0.0005726,120]
[379128805,1755151973561,-400.0,0.0005726,120]
[379128806,1755151973571,-825.93,0.0005726,120]
[379128807,1755151973582,-15433.92,0.0005726,120]
[379128808,1755151973592,-1081.04,0.0005726,120]
[379128809,1755151973602,-1936.66,0.0005726,120]
[379128810,1755151973612,-3500.0,0.0005726,120]
[379128811,1755151973622,-400.0,0.0005726,120]
[379128812,1755151973632,-2546.25,0.0005726,120]
[379128813,1755151973642,-400.0,0.0005726,120]
[379128814,1755151973651,-2830.56,0.0005726,120]
[379128815,1755151973662,-400.0,0.0005726,120]
[379128816,1755151973672,-400.0,0.0005726,120]
[379128817,1755151973682,-5061.69,0.0005726,120]
[379128818,1755151973692,-5480.14,0.0005726,120]
[379128819,1755151973701,-400.0,0.0005726,120]
[379128820,1755151973713,-400.0,0.0005726,120]
[379128821,1755151973723,-400.0,0.0005726,120]
[379128822,1755151973734,-400.0,0.0005726,120]
[379128823,1755151973744,-400.0,0.0005726,120]
[379128824,1755151973755,-2644.18,0.0005726,120]
[379128825,1755151973765,-400.0,0.0005726,120]
[379128826,1755151973775,-400.0,0.0005726,120]
[379128827,1755151973786,-887.45,0.0005726,120]
[379128828,1755151973796,-400.0,0.0005726,120]
[379128829,1755151973807,-3849.42,0.0005726,120]
[379128830,1755151973818,-400.0,0.0005726,120]
[379128831,1755151973829,-400.0,0.0005726,120]
[379128832,1755151973839,-400.0,0.0005726,120]
[379128833,1755151973849,-400.0,0.0005726,120]
[379128834,1755151973859,-400.0,0.0005726,120]
[379128835,1755151973868,-1171.88,0.0005726,15]
[379128836,1755151973878,-946.02,0.0005726,30]
[379128837,1755151973888,-760.13,0.0005726,120]
[379128838,1755151973898,-641.6,0.0005726,120]
[379128839,1755151974034,-400.0,0.0005726,120]
[379128840,1755151974054,-400.0,0.0005726,120]
[379128841,1755151974063,-3015.83,0.0005726,120]
[379128842,1755151974073,-1408.96,0.0005726,120]
[379128843,1755151974084,-2525.64,0.0005726,120]
[379128844,1755151974094,-400.0,0.0005726,120]
[379128845,1755151974104,-400.0,0.0005726,120]
[379128846,1755151974114,-698.37,0.0005726,120]
[379128847,1755151974123,-1796.88,0.0005726,120]
[379128848,1755151974133,-400.0,0.0005726,120]
[379128849,1755151974143,-6675.24,0.0005726,120]
[379128850,1755151974152,-400.0,0.0005726,120]
[379128851,1755151974162,-818.48,0.0005726,120]
[379128852,1755151974172,-2836.21,0.0005726,120]
[379128853,1755151974184,-2362.21,0.0005726,120]
[379128854,1755151974194,-255.41111563,0.0005726,120]
[379128855,1755151974205,-400.0,0.0005726,2]
[379128856,1755151974214,-5613.39,0.0005726,120]
[379128857,1755151974224,-400.0,0.0005726,120]
[379128858,1755151974234,-2693.4,0.0005726,120]
[379128859,1755151974244,-1980.06,0.0005726,120]
[379128860,1755151974254,-602.91,0.0005726,120]
[379128861,1755151974264,-450.22,0.0005726,120]
[379128862,1755151974274,-644.83,0.0005726,120]
[379128863,1755151974284,-400.0,0.0005726,120]
[379128864,1755151974294,-400.0,0.0005726,120]
[379128865,1755151974304,-496.5,0.0005726,120]
[379128866,1755151974315,-400.0,0.0005726,120]
[379128867,1755151974325,-726.37,0.0005726,120]
[379128868,1755151974335,-10196.5,0.0005726,120]
[379128869,1755151974345,-2203.33,0.0005726,120]
[379128870,1755151974355,-895.57,0.0005726,120]
[379128871,1755151974366,-400.0,0.0005726,120]
[379128872,1755151974376,-3273.53,0.0005726,120]